[Event "Latvijas 2022. gada jauniešu čempionāta fināls"]
[Site "Riga, Latvia"]
[Date "2022.06.13"]
[Round "3.6"]
[White "Gaidis, Edvards"]
[Black "Merzlovs, Timurs"]
[Result "1-0"]
[TimeControl "3600+30"]
[WhiteElo "1190"]
[BlackElo "1152"]

1. e4 {[%clk 01:00:57]} {[%emt 00:00:02]} e5 {[%clk 01:00:56]} {[%emt
00:00:05]} 2. Nf3 {[%clk 01:01:24]} {[%emt 00:00:03]} Nc6 {[%clk 01:01:22]}
{[%emt 00:00:04]} 3. Bc4 {[%clk 01:01:48]} {[%emt 00:00:06]} Bc5 {[%clk
01:01:43]} {[%emt 00:00:09]} 4. d3 {[%clk 01:02:11]} {[%emt 00:00:06]} Nf6
{[%clk 01:02:05]} {[%emt 00:00:09]} 5. Bg5 {[%clk 01:02:36]} {[%emt 00:00:05]}
h6 {[%clk 01:01:52]} {[%emt 00:00:42]} 6. Bh4 {[%clk 01:02:55]} {[%emt
00:00:11]} g5 {[%clk 01:02:09]} {[%emt 00:00:14]} 7. Bg3 {[%clk 01:03:17]}
{[%emt 00:00:06]} d6 {[%clk 01:02:31]} {[%emt 00:00:11]} 8. h3 {[%clk
01:03:42]} {[%emt 00:00:03]} Be6 {[%clk 01:02:54]} {[%emt 00:00:07]} 9. Bxe6
{[%clk 01:03:47]} {[%emt 00:02:28]} Ke7 {[%clk 01:02:54]} {[%emt 00:00:37]} 10.
Bb3 {[%clk 01:04:03]} {[%emt 00:00:12]} Qd7 {[%clk 01:02:16]} {[%emt 00:01:10]}
11. Nc3 {[%clk 01:04:23]} {[%emt 00:00:09]} Rae8 {[%clk 01:01:50]} {[%emt
00:00:57]} 12. Nd5+ {[%clk 01:04:22]} {[%emt 00:00:31]} Nxd5 {[%clk 01:02:12]}
{[%emt 00:00:09]} 13. Bxd5 {[%clk 01:04:33]} {[%emt 00:00:17]} f5 {[%clk
01:01:39]} {[%emt 00:01:04]} 14. exf5 {[%clk 01:04:44]} {[%emt 00:00:18]} Qxf5
{[%clk 01:02:00]} {[%emt 00:00:10]} 15. Bxc6 {[%clk 01:05:04]} {[%emt
00:00:10]} bxc6 {[%clk 01:02:24]} {[%emt 00:00:07]} 16. O-O {[%clk 01:05:23]}
{[%emt 00:00:10]} h5 {[%clk 01:02:38]} {[%emt 00:00:15]} 17. Qd2 {[%clk
01:05:26]} {[%emt 00:00:25]} Reg8 {[%clk 01:02:45]} {[%emt 00:00:26]} 18. d4
{[%clk 01:05:23]} {[%emt 00:00:32]} exd4 {[%clk 01:02:04]} {[%emt 00:01:12]} 19.
Rae1+ {[%clk 01:05:38]} {[%emt 00:00:14]} Kd7 {[%clk 01:02:21]} {[%emt
00:00:15]} 20. Nxd4 {[%clk 01:05:15]} {[%emt 00:00:51]} Bxd4 {[%clk 01:02:42]}
{[%emt 00:00:10]} 21. Qxd4 {[%clk 01:05:36]} {[%emt 00:00:08]} Rh6 {[%clk
01:01:35]} {[%emt 00:01:39]} 22. f4 {[%clk 01:05:24]} {[%emt 00:00:36]} Rhg6
{[%clk 01:01:22]} {[%emt 00:00:49]} 23. fxg5 {[%clk 01:05:19]} {[%emt
00:00:31]} Qxg5 {[%clk 01:01:26]} {[%emt 00:00:28]} 24. Rf7+ {[%clk 01:05:08]}
{[%emt 00:00:35]} Kc8 {[%clk 01:00:47]} {[%emt 00:01:15]} 25. Qxa7 {[%clk
01:03:33]} {[%emt 00:02:02]} Qc5+ {[%clk 01:01:07]} {[%emt 00:00:13]} 26. Qxc5
{[%clk 01:03:52]} {[%emt 00:00:11]} dxc5 {[%clk 01:01:32]} {[%emt 00:00:05]} 27.
Rxc7+ {[%clk 01:04:13]} {[%emt 00:00:07]} Kd8 {[%clk 01:01:58]} {[%emt
00:00:06]} 28. Rd1+ {[%clk 01:04:23]} {[%emt 00:00:18]} Ke8 {[%clk 01:02:19]}
{[%emt 00:00:11]} 29. Rc8+ {[%clk 01:04:23]} {[%emt 00:00:29]} Ke7 {[%clk
01:02:23]} {[%emt 00:00:27]} 30. Rxg8 {[%clk 01:04:43]} {[%emt 00:00:09]} Rxg8
{[%clk 01:02:50]} {[%emt 00:00:04]} 31. Kh2 {[%clk 01:05:00]} {[%emt 00:00:11]}
1-0

[Event "Latvijas 2022. gada jauniešu čempionāta fināls"]
[Site "Riga, Latvia"]
[Date "2022.06.13"]
[Round "3.7"]
[White "Maklakova, Naomi"]
[Black "Kuznecova, Marija"]
[Result "1-0"]
[TimeControl "3600+30"]
[WhiteElo "1488"]
[BlackElo "1783"]

1. d4 {[%clk 01:00:56]} {[%emt 00:00:02]} Nf6 {[%clk 01:00:55]} {[%emt
00:00:07]} 2. Nf3 {[%clk 01:01:16]} {[%emt 00:00:09]} c5 {[%clk 01:01:19]}
{[%emt 00:00:06]} 3. d5 {[%clk 01:01:33]} {[%emt 00:00:13]} d6 {[%clk
01:00:22]} {[%emt 00:01:27]} 4. c4 {[%clk 01:01:38]} {[%emt 00:00:24]} b5
{[%clk 00:59:55]} {[%emt 00:00:58]} 5. Bg5 {[%clk 00:57:54]} {[%emt 00:04:14]}
Nbd7 {[%clk 00:57:09]} {[%emt 00:03:16]} 6. cxb5 {[%clk 00:53:13]} {[%emt
00:05:11]} a6 {[%clk 00:55:32]} {[%emt 00:02:08]} 7. e3 {[%clk 00:51:44]}
{[%emt 00:01:58]} g6 {[%clk 00:47:24]} {[%emt 00:08:38]} 8. Nc3 {[%clk
00:51:30]} {[%emt 00:00:44]} Bg7 {[%clk 00:45:38]} {[%emt 00:02:16]} 9. bxa6
{[%clk 00:49:09]} {[%emt 00:02:52]} Qa5 {[%clk 00:43:42]} {[%emt 00:02:26]} 10.
Qd2 {[%clk 00:45:55]} {[%emt 00:03:42]} Bxa6 {[%clk 00:41:13]} {[%emt
00:03:01]} 11. Bxa6 {[%clk 00:46:09]} {[%emt 00:00:16]} Qxa6 {[%clk 00:41:01]}
{[%emt 00:00:42]} 12. Qe2 {[%clk 00:43:37]} {[%emt 00:03:01]} Qb7 {[%clk
00:37:00]} {[%emt 00:04:32]} 13. e4 {[%clk 00:43:26]} {[%emt 00:00:42]} O-O
{[%clk 00:35:14]} {[%emt 00:02:15]} 14. O-O {[%clk 00:43:41]} {[%emt 00:00:16]}
Rfb8 {[%clk 00:33:52]} {[%emt 00:01:53]} 15. b3 {[%clk 00:38:46]} {[%emt
00:05:25]} h6 {[%clk 00:26:21]} {[%emt 00:08:00]} 16. Bd2 {[%clk 00:38:02]}
{[%emt 00:01:14]} g5 {[%clk 00:23:32]} {[%emt 00:03:19]} 17. Rac1 {[%clk
00:36:28]} {[%emt 00:02:04]} Ne8 {[%clk 00:22:23]} {[%emt 00:01:40]} 18. Rfd1
{[%clk 00:33:36]} {[%emt 00:03:20]} Nc7 {[%clk 00:19:59]} {[%emt 00:02:56]} 19.
Ne1 {[%clk 00:25:19]} {[%emt 00:08:47]} Na6 {[%clk 00:16:47]} {[%emt 00:03:41]}
20. f4 {[%clk 00:23:15]} {[%emt 00:02:35]} Nb4 {[%clk 00:10:34]} {[%emt
00:06:43]} 21. a4 {[%clk 00:20:49]} {[%emt 00:02:56]} gxf4 {[%clk 00:08:39]}
{[%emt 00:02:24]} 22. Bxf4 {[%clk 00:20:18]} {[%emt 00:01:02]} Nf6 {[%clk
00:08:25]} {[%emt 00:00:43]} 23. Kh1 {[%clk 00:19:31]} {[%emt 00:01:18]} Qd7
{[%clk 00:06:17]} {[%emt 00:02:38]} 24. e5 {[%clk 00:16:07]} {[%emt 00:03:54]}
dxe5 {[%clk 00:04:05]} {[%emt 00:02:43]} 25. Bxe5 {[%clk 00:16:23]} {[%emt
00:00:14]} Rd8 {[%clk 00:03:31]} {[%emt 00:01:03]} 26. Bxf6 {[%clk 00:13:11]}
{[%emt 00:03:42]} Bxf6 {[%clk 00:01:50]} {[%emt 00:02:11]} 27. Ne4 {[%clk
00:13:04]} {[%emt 00:00:37]} Nxd5 {[%clk 00:01:05]} {[%emt 00:01:15]} 28. Nxc5
{[%clk 00:08:25]} {[%emt 00:05:09]} Qf5 {[%clk 00:00:42]} {[%emt 00:00:52]} 29.
Qf3 {[%clk 00:07:10]} {[%emt 00:01:46]} Qxf3 {[%clk 00:00:40]} {[%emt
00:00:32]} 30. Nxf3 {[%clk 00:07:38]} {[%emt 00:00:03]} Nc3 {[%clk 00:00:48]}
{[%emt 00:00:22]} 31. Rxd8+ {[%clk 00:06:23]} {[%emt 00:01:45]} Rxd8 {[%clk
00:01:16]} {[%emt 00:00:02]} 32. a5 {[%clk 00:06:34]} {[%emt 00:00:19]} Ra8
{[%clk 00:00:54]} {[%emt 00:00:52]} 33. a6 {[%clk 00:05:48]} {[%emt 00:01:17]}
Rc8 {[%clk 00:00:32]} {[%emt 00:00:50]} 34. Nd7 {[%clk 00:05:22]} {[%emt
00:00:56]} Ra8 {[%clk 00:00:36]} {[%emt 00:00:26]} 35. Nxf6+ {[%clk 00:05:33]}
{[%emt 00:00:18]} exf6 {[%clk 00:01:05]} 36. Rxc3 {[%clk 00:05:48]} {[%emt
00:00:16]} Rxa6 {[%clk 00:01:32]} {[%emt 00:00:03]} 37. Kg1 {[%clk 00:06:01]}
{[%emt 00:00:17]} Ra2 {[%clk 00:01:20]} {[%emt 00:00:41]} 38. Nd4 {[%clk
00:05:48]} {[%emt 00:00:44]} Rd2 {[%clk 00:01:27]} {[%emt 00:00:23]} 39. Nf5
{[%clk 00:05:49]} {[%emt 00:00:28]} Kh7 {[%clk 00:01:40]} {[%emt 00:00:16]} 40.
Rg3 {[%clk 00:05:23]} {[%emt 00:00:57]} Rd7 {[%clk 00:01:55]} {[%emt 00:00:16]}
41. b4 {[%clk 00:05:39]} {[%emt 00:00:14]} Rb7 {[%clk 00:02:16]} {[%emt
00:00:08]} 42. Rb3 {[%clk 00:06:00]} {[%emt 00:00:09]} Rb5 {[%clk 00:02:17]}
{[%emt 00:00:29]} 43. Nd6 {[%clk 00:05:15]} {[%emt 00:01:16]} Rd5 {[%clk
00:02:40]} {[%emt 00:00:06]} 44. Nc4 {[%clk 00:05:25]} {[%emt 00:00:21]} Rb5
{[%clk 00:02:56]} {[%emt 00:00:14]} 45. Na3 {[%clk 00:05:42]} {[%emt 00:00:13]}
Rb7 {[%clk 00:02:40]} {[%emt 00:00:46]} 46. b5 {[%clk 00:06:01]} {[%emt
00:00:12]} Rb6 {[%clk 00:02:40]} {[%emt 00:00:30]} 47. Nc4 {[%clk 00:06:22]}
{[%emt 00:00:09]} 1-0

[Event "Latvijas 2022. gada jauniešu čempionāta fināls"]
[Site "Riga, Latvia"]
[Date "2022.06.13"]
[Round "3.8"]
[White "Vasiljeva, Sofja"]
[Black "Jansone, Melanija Luize"]
[Result "1/2-1/2"]
[TimeControl "3600+30"]
[WhiteElo "1676"]
[BlackElo "1590"]

1. e4 {[%clk 01:00:57]} {[%emt 00:00:02]} c5 {[%clk 01:00:55]} {[%emt
00:00:05]} 2. Nf3 {[%clk 01:01:23]} {[%emt 00:00:04]} g6 {[%clk 01:01:20]}
{[%emt 00:00:06]} 3. d4 {[%clk 01:01:31]} {[%emt 00:00:22]} cxd4 {[%clk
01:01:46]} {[%emt 00:00:04]} 4. Nxd4 {[%clk 01:01:57]} {[%emt 00:00:04]} Bg7
{[%clk 01:02:02]} {[%emt 00:00:13]} 5. Nc3 {[%clk 00:59:27]} {[%emt 00:03:01]}
d6 {[%clk 01:01:55]} {[%emt 00:00:36]} 6. Be3 {[%clk 00:58:47]} {[%emt
00:01:10]} Nf6 {[%clk 01:02:16]} {[%emt 00:00:10]} 7. Be2 {[%clk 00:54:34]}
{[%emt 00:04:43]} Nc6 {[%clk 01:02:33]} {[%emt 00:00:13]} 8. O-O {[%clk
00:53:38]} {[%emt 00:01:26]} O-O {[%clk 01:02:53]} {[%emt 00:00:09]} 9. h3
{[%clk 00:51:05]} {[%emt 00:03:04]} Bd7 {[%clk 01:03:16]} {[%emt 00:00:06]} 10.
f4 {[%clk 00:48:38]} {[%emt 00:02:57]} Rc8 {[%clk 01:00:54]} {[%emt 00:02:53]}
11. g4 {[%clk 00:43:26]} {[%emt 00:05:42]} Qb6 {[%clk 00:51:45]} {[%emt
00:09:38]} 12. Qd2 {[%clk 00:38:17]} {[%emt 00:05:39]} Nxe4 {[%clk 00:50:54]}
{[%emt 00:01:21]} 13. Nxc6 {[%clk 00:25:41]} {[%emt 00:13:07]} Qxc6 {[%clk
00:44:02]} {[%emt 00:07:21]} 14. Nxe4 {[%clk 00:23:00]} {[%emt 00:03:11]} Qxe4
{[%clk 00:44:18]} {[%emt 00:00:14]} 15. c3 {[%clk 00:22:03]} {[%emt 00:01:27]}
Qa4 {[%clk 00:38:03]} {[%emt 00:06:40]} 16. Bf3 {[%clk 00:19:37]} {[%emt
00:03:02]} Bc6 {[%clk 00:36:01]} {[%emt 00:02:32]} 17. Bxc6 {[%clk 00:19:14]}
{[%emt 00:00:53]} Rxc6 {[%clk 00:35:34]} {[%emt 00:00:57]} 18. f5 {[%clk
00:17:04]} {[%emt 00:02:40]} a6 {[%clk 00:32:50]} {[%emt 00:03:14]} 19. a3
{[%clk 00:13:34]} {[%emt 00:04:00]} Rd8 {[%clk 00:22:15]} {[%emt 00:11:04]} 20.
Rae1 {[%clk 00:10:56]} {[%emt 00:03:08]} 1/2-1/2

[Event "Latvijas 2022. gada jauniešu čempionāta fināls"]
[Site "Riga, Latvia"]
[Date "2022.06.13"]
[Round "3.9"]
[White "Spirkova, Marija"]
[Black "Ozolina, Elina"]
[Result "0-1"]
[TimeControl "3600+30"]
[WhiteElo "1487"]
[BlackElo "1057"]

1. e4 {[%clk 01:00:58]} c6 {[%clk 01:00:54]} {[%emt 00:00:07]} 2. d4 {[%clk
01:01:19]} {[%emt 00:00:09]} d5 {[%clk 01:01:19]} {[%emt 00:00:05]} 3. exd5
{[%clk 01:01:44]} {[%emt 00:00:05]} cxd5 {[%clk 01:01:43]} {[%emt 00:00:06]} 4.
Bd3 {[%clk 01:02:05]} {[%emt 00:00:09]} Nc6 {[%clk 01:02:06]} {[%emt 00:00:08]}
5. c3 {[%clk 01:02:29]} {[%emt 00:00:04]} Qc7 {[%clk 01:02:28]} {[%emt
00:00:08]} 6. Be3 {[%clk 01:02:48]} {[%emt 00:00:10]} Nf6 {[%clk 01:02:50]}
{[%emt 00:00:09]} 7. Nd2 {[%clk 01:03:02]} {[%emt 00:00:16]} Bg4 {[%clk
01:03:12]} {[%emt 00:00:09]} 8. f3 {[%clk 01:03:17]} {[%emt 00:00:16]} Bh5
{[%clk 01:03:33]} {[%emt 00:00:09]} 9. Ne2 {[%clk 01:03:23]} {[%emt 00:00:24]}
e6 {[%clk 01:03:53]} {[%emt 00:00:10]} 10. Bf4 {[%clk 01:01:51]} {[%emt
00:02:02]} Bd6 {[%clk 01:02:46]} {[%emt 00:01:37]} 11. Bxd6 {[%clk 01:01:45]}
{[%emt 00:00:37]} Qxd6 {[%clk 01:03:09]} {[%emt 00:00:08]} 12. Qb3 {[%clk
01:00:58]} {[%emt 00:01:15]} Rb8 {[%clk 01:01:12]} {[%emt 00:02:27]} 13. O-O-O
{[%clk 01:01:03]} {[%emt 00:00:25]} O-O {[%clk 01:01:03]} {[%emt 00:00:40]} 14.
g4 {[%clk 00:57:01]} {[%emt 00:04:31]} Bg6 {[%clk 01:01:25]} {[%emt 00:00:09]}
15. Bxg6 {[%clk 00:56:46]} {[%emt 00:00:45]} fxg6 {[%clk 01:01:34]} {[%emt
00:00:21]} 16. h4 {[%clk 00:52:58]} {[%emt 00:04:17]} Rfc8 {[%clk 00:59:50]}
{[%emt 00:02:15]} 17. Kb1 {[%clk 00:51:07]} {[%emt 00:02:20]} b5 {[%clk
00:57:02]} {[%emt 00:03:18]} 18. a3 {[%clk 00:48:59]} {[%emt 00:02:39]} a5
{[%clk 00:55:41]} {[%emt 00:01:51]} 19. a4 {[%clk 00:46:40]} {[%emt 00:02:47]}
bxa4 {[%clk 00:50:00]} {[%emt 00:06:12]} 20. Qxa4 {[%clk 00:47:00]} {[%emt
00:00:10]} e5 {[%clk 00:44:13]} {[%emt 00:06:18]} 21. Nb3 {[%clk 00:31:55]}
{[%emt 00:15:34]} Rb6 {[%clk 00:34:09]} {[%emt 00:10:34]} 22. Ka2 {[%clk
00:23:36]} {[%emt 00:08:48]} Rcb8 {[%clk 00:32:15]} {[%emt 00:02:25]} 23. Nec1
{[%clk 00:16:32]} {[%emt 00:07:33]} exd4 {[%clk 00:31:07]} {[%emt 00:01:39]} 24.
cxd4 {[%clk 00:16:13]} {[%emt 00:00:49]} Rb4 {[%clk 00:26:28]} {[%emt
00:05:08]} 25. Qa3 {[%clk 00:14:52]} {[%emt 00:01:52]} Qc7 {[%clk 00:22:33]}
{[%emt 00:04:23]} 26. Rd2 {[%clk 00:11:49]} {[%emt 00:03:34]} Qb6 {[%clk
00:19:09]} {[%emt 00:03:54]} 27. Rhd1 {[%clk 00:07:49]} {[%emt 00:04:28]} Nd7
{[%clk 00:15:43]} {[%emt 00:03:57]} 28. g5 {[%clk 00:06:44]} {[%emt 00:01:36]}
Nf8 {[%clk 00:15:08]} {[%emt 00:01:06]} 29. Nc5 {[%clk 00:05:56]} {[%emt
00:01:18]} Nxd4 {[%clk 00:09:43]} {[%emt 00:05:56]} 30. Rxd4 {[%clk 00:03:55]}
{[%emt 00:02:30]} Qxc5 {[%clk 00:08:40]} {[%emt 00:01:33]} 31. Rxb4 {[%clk
00:01:41]} {[%emt 00:02:44]} Rxb4 {[%clk 00:06:59]} {[%emt 00:02:11]} 32. Nb3
{[%clk 00:01:42]} {[%emt 00:00:28]} Qc4 {[%clk 00:06:46]} {[%emt 00:00:43]} 33.
Rd4 {[%clk 00:01:21]} {[%emt 00:00:52]} Rxb3 {[%clk 00:04:54]} {[%emt
00:02:22]} 34. Rxc4 {[%clk 00:00:54]} {[%emt 00:00:57]} Rxa3+ {[%clk 00:05:13]}
{[%emt 00:00:10]} 35. Kxa3 {[%clk 00:01:13]} {[%emt 00:00:11]} dxc4 {[%clk
00:05:38]} {[%emt 00:00:05]} 36. Ka4 {[%clk 00:01:21]} {[%emt 00:00:22]} Nd7
{[%clk 00:05:38]} {[%emt 00:00:29]} 37. Kxa5 {[%clk 00:01:27]} {[%emt
00:00:25]} Ne5 {[%clk 00:05:59]} {[%emt 00:00:09]} 38. Kb5 {[%clk 00:01:04]}
{[%emt 00:00:52]} Kf7 {[%clk 00:05:57]} {[%emt 00:00:33]} 0-1

[Event "Latvijas 2022. gada jauniešu čempionāta fināls"]
[Site "Riga, Latvia"]
[Date "2022.06.13"]
[Round "3.10"]
[White "Krasilnikova, Marija"]
[Black "Plauca, Lelde"]
[Result "1-0"]
[TimeControl "3600+30"]
[WhiteElo "1300"]
[BlackElo "1005"]

1. e4 {[%clk 01:00:59]} {[%emt 00:14:47]} e5 {[%clk 01:00:56]} {[%emt
00:00:05]} 2. Nf3 {[%clk 01:01:23]} {[%emt 00:00:05]} Nc6 {[%clk 01:01:18]}
{[%emt 00:00:08]} 3. Bb5 {[%clk 01:01:50]} {[%emt 00:00:04]} Nf6 {[%clk
01:01:17]} {[%emt 00:00:32]} 4. O-O {[%clk 01:02:14]} {[%emt 00:00:05]} a6
{[%clk 01:01:09]} {[%emt 00:00:38]} 5. Ba4 {[%clk 01:02:36]} {[%emt 00:00:06]}
b5 {[%clk 01:01:16]} {[%emt 00:00:24]} 6. Bb3 {[%clk 01:03:00]} {[%emt
00:00:06]} Bc5 {[%clk 01:01:14]} {[%emt 00:00:32]} 7. Re1 {[%clk 01:02:36]}
{[%emt 00:00:54]} O-O {[%clk 01:01:18]} {[%emt 00:00:25]} 8. c3 {[%clk
01:02:26]} {[%emt 00:00:40]} h6 {[%clk 00:59:46]} {[%emt 00:02:03]} 9. d4
{[%clk 01:01:03]} {[%emt 00:01:53]} Ba7 {[%clk 00:57:11]} {[%emt 00:03:05]} 10.
h3 {[%clk 00:48:46]} {[%emt 00:12:47]} d6 {[%clk 00:55:03]} {[%emt 00:02:38]}
11. Be3 {[%clk 00:45:38]} {[%emt 00:03:38]} Re8 {[%clk 00:50:22]} {[%emt
00:05:12]} 12. Nbd2 {[%clk 00:41:22]} {[%emt 00:04:46]} d5 {[%clk 00:46:15]}
{[%emt 00:04:37]} 13. dxe5 {[%clk 00:32:19]} {[%emt 00:09:33]} Nxe4 {[%clk
00:37:48]} {[%emt 00:08:57]} 14. Bxa7 {[%clk 00:30:31]} {[%emt 00:02:18]} Rxa7
{[%clk 00:30:45]} {[%emt 00:07:34]} 15. Nxe4 {[%clk 00:30:07]} {[%emt
00:00:52]} dxe4 {[%clk 00:30:09]} {[%emt 00:01:06]} 16. Rxe4 {[%clk 00:28:53]}
{[%emt 00:01:43]} Be6 {[%clk 00:24:17]} {[%emt 00:06:23]} 17. Bxe6 {[%clk
00:23:11]} {[%emt 00:06:13]} Rxe6 {[%clk 00:22:13]} {[%emt 00:02:33]} 18. Qxd8+
{[%clk 00:14:18]} {[%emt 00:09:22]} Nxd8 {[%clk 00:22:32]} {[%emt 00:00:12]} 19.
Rd1 {[%clk 00:11:17]} {[%emt 00:03:30]} Nc6 {[%clk 00:22:27]} {[%emt 00:00:36]}
20. Nd4 {[%clk 00:11:08]} {[%emt 00:00:39]} Nxd4 {[%clk 00:21:14]} {[%emt
00:01:43]} 21. cxd4 {[%clk 00:09:30]} {[%emt 00:02:09]} c6 {[%clk 00:20:45]}
{[%emt 00:00:59]} 22. f4 {[%clk 00:08:30]} {[%emt 00:01:29]} f5 {[%clk
00:20:44]} {[%emt 00:00:32]} 23. Re2 {[%clk 00:08:09]} {[%emt 00:00:49]} Rd7
{[%clk 00:20:07]} {[%emt 00:01:08]} 24. b4 {[%clk 00:07:50]} {[%emt 00:00:50]}
a5 {[%clk 00:18:40]} {[%emt 00:01:56]} 25. bxa5 {[%clk 00:07:13]} {[%emt
00:01:08]} Ra7 {[%clk 00:19:01]} {[%emt 00:00:09]} 26. d5 {[%clk 00:07:35]}
{[%emt 00:00:08]} cxd5 {[%clk 00:19:07]} {[%emt 00:00:24]} 27. Rxd5 {[%clk
00:07:59]} {[%emt 00:00:05]} Rxa5 {[%clk 00:19:27]} {[%emt 00:00:11]} 28. Rd6
{[%clk 00:05:34]} {[%emt 00:02:55]} Kf7 {[%clk 00:19:01]} {[%emt 00:00:55]} 29.
Rd5 {[%clk 00:02:14]} {[%emt 00:03:51]} Kg8 {[%clk 00:18:03]} {[%emt 00:01:27]}
30. g4 {[%clk 00:02:25]} {[%emt 00:00:19]} g6 {[%clk 00:18:17]} {[%emt
00:00:17]} 31. Rg2 {[%clk 00:02:22]} {[%emt 00:00:32]} Kf7 {[%clk 00:17:21]}
{[%emt 00:01:26]} 32. Rb2 {[%clk 00:02:03]} {[%emt 00:00:50]} Rb6 {[%clk
00:17:02]} {[%emt 00:00:49]} 33. Rd7+ {[%clk 00:01:56]} {[%emt 00:00:36]} Ke6
{[%clk 00:16:57]} {[%emt 00:00:35]} 34. Rh7 {[%clk 00:01:11]} {[%emt 00:01:15]}
Kd5 {[%clk 00:12:33]} {[%emt 00:04:55]} 35. Rxh6 {[%clk 00:01:23]} {[%emt
00:00:18]} Ke4 {[%clk 00:12:47]} {[%emt 00:00:16]} 36. Re2+ {[%clk 00:00:53]}
{[%emt 00:01:00]} Kf3 {[%clk 00:12:15]} {[%emt 00:01:02]} 37. Kf1 {[%clk
00:00:56]} {[%emt 00:00:27]} Raa6 {[%clk 00:11:29]} {[%emt 00:01:16]} 38. gxf5
{[%clk 00:01:03]} {[%emt 00:00:23]} gxf5 {[%clk 00:10:50]} {[%emt 00:01:08]} 39.
Rxb6 {[%clk 00:00:47]} {[%emt 00:00:46]} Rxb6 {[%clk 00:10:50]} {[%emt
00:00:30]} 40. e6 {[%clk 00:00:44]} {[%emt 00:00:33]} Rb8 {[%clk 00:11:06]}
{[%emt 00:00:14]} 41. e7 {[%clk 00:00:47]} {[%emt 00:00:27]} Re8 {[%clk
00:11:19]} {[%emt 00:00:17]} 42. Re5 {[%clk 00:00:53]} {[%emt 00:00:25]} Kxf4
{[%clk 00:11:06]} {[%emt 00:00:43]} 43. Rxb5 {[%clk 00:01:17]} {[%emt
00:00:05]} Rxe7 {[%clk 00:10:40]} {[%emt 00:00:56]} 44. Kf2 {[%clk 00:01:06]}
{[%emt 00:00:42]} Ra7 {[%clk 00:10:36]} {[%emt 00:00:34]} 45. Rb4+ {[%clk
00:01:09]} {[%emt 00:00:27]} Kg5 {[%clk 00:10:11]} {[%emt 00:00:54]} 46. h4+
{[%clk 00:00:52]} {[%emt 00:00:47]} Kh5 {[%clk 00:10:24]} {[%emt 00:00:17]} 47.
a4 {[%clk 00:01:16]} {[%emt 00:00:07]} Re7 {[%clk 00:09:13]} {[%emt 00:01:40]}
48. Kf3 {[%clk 00:01:00]} {[%emt 00:00:47]} Kg6 {[%clk 00:09:00]} {[%emt
00:00:43]} 49. Kf4 {[%clk 00:01:06]} {[%emt 00:00:24]} Rh7 {[%clk 00:08:52]}
{[%emt 00:00:38]} 50. Rb6+ {[%clk 00:01:16]} {[%emt 00:00:20]} Kf7 {[%clk
00:07:22]} {[%emt 00:02:00]} 51. Rb7+ {[%clk 00:01:36]} {[%emt 00:00:10]} 1-0